Workbook

Sheet Global parameter definition
A1: Parameters for photon flux calculation
A2: Fluorescence lifetime [ns] | B2: 4.1 | D2: Written by Peter Nagy
A3: Molar absorption coefficient at wavelength of laser [M-1 cm-1] | B3: 55832 | D3: Email: peter.v.nagy@gmail.com
A4: Dwell time [ms] | B4: 32 | D4: Web: peternagy.webs.com
D5: Web: peternagygroup.com
A6: Parameters for FRET and alpha calculation | D6: University of Debrecen, Hungary
A7: Donor
A8: Fluorescence lifetime [ns] | B8: 2.6 | D8: The Nelder-Mead fitting algorithm adapted from https://quantmacro.wordpress.com/2016/07/01/nelder-mead-method-in-vba/
A9: Molar absorption coefficient at donor excitation [M-1 cm-1] | B9: 54589
A10: Molar absorption coefficient at acceptor excitation [M-1 cm-1] | B10: 291
A11: S1 | B11: 0.0704
A12: S3 | B12: 0.0001
A14: Acceptor
A15: Fluorescence lifetime [ns] | B15: 1.4
A16: Molar absorption coefficient at acceptor excitation [M-1 cm-1] | B16: 38818
A17: Molar absorption coefficient at donor excitation [M-1 cm-1] | B17: 5564
A18: S2 | B18: 3.59
A19: S4 | B19: 0.0174
A21: Donor and acceptor
A22: aClassic | B22: 1.03
A23: aSat | B23: 0.564
A25: Laser parameters
A26: Photon flux of donor-exciting laser [cm-2 s-1] | B26: 4.9e+23
A27: Photon flux of acceptor-exciting laser [cm-2 s-1] | B27: 9.5e+21

Sheet Photon flux
A1: Relative laser intensity (%) | B1: Fluorescence intensity | G1: Fitted curve | H1: Normalized | K1: Squared deviation | M1: Fitted curve to plot
H2: laser intensity | I2: measured fluorescence | J2: fitted fluorescence | M2: Laser intensity | N2: Fluorescence intensity | O2: Normalized fluorescence intensity
A3: 1 | B3: 843.729496 | D3: Fluorescence lifetime [ns] | E3: ='Global parameter definition'!B2 -> 4.1 | G3: =IF(A3<>"",calcSigma($E$4)*$E$3*0.000000001*$E$7*A3/A$3/(1+calcSigma($E$4)*$E$3*0.000000001*$E$7*A3/A$3),"") -> 0.04410332648 | H3: =IF(A3<>"",A3/A$3,"") -> 1 | I3: =IF(A3<>"",B3/B$3,"") -> 1 | J3: =IF(A3<>"",G3/G$3,"") -> 1 | K3: =IF(A3<>"",(I3-J3)^2,"") -> 0 | M3: 1 | N3: =calcSigma($E$4)*$E$3*0.000000001*$E$7*M3/(1+calcSigma($E$4)*$E$3*0.000000001*$E$7*M3) -> 0.04410332648 | O3: =N3/N$3 -> 1
A4: 5 | B4: 3474.429803 | D4: Molar absorption coefficient at wavelength of laser [M-1 cm-1] | E4: ='Global parameter definition'!B3 -> 55832 | G4: =IF(A4<>"",calcSigma($E$4)*$E$3*0.000000001*$E$7*A4/A$3/(1+calcSigma($E$4)*$E$3*0.000000001*$E$7*A4/A$3),"") -> 0.1874482644 | H4: =IF(A4<>"",A4/A$3,"") -> 5 | I4: 4.1179428 | J4: 4.250206942 | K4: 0.0174938035 | M4: 1.285714286 | N4: =calcSigma($E$4)*$E$3*0.000000001*$E$7*M4/(1+calcSigma($E$4)*$E$3*0.000000001*$E$7*M4) -> 0.0559986408 | O4: =N4/N$3 -> 1.269714674
A5: 10 | B5: 5938.066793 | G5: =IF(A5<>"",calcSigma($E$4)*$E$3*0.000000001*$E$7*A5/A$3/(1+calcSigma($E$4)*$E$3*0.000000001*$E$7*A5/A$3),"") -> 0.3157160948 | H5: 10 | I5: 7.03787982 | J5: 7.158555147 | K5: 0.0145625346 | M5: 1.571428571 | N5: =calcSigma($E$4)*$E$3*0.000000001*$E$7*M5/(1+calcSigma($E$4)*$E$3*0.000000001*$E$7*M5) -> 0.06760154001 | O5: 1.53279912
A6: 15 | B6: 7904.135573 | G6: =IF(A6<>"",calcSigma($E$4)*$E$3*0.000000001*$E$7*A6/A$3/(1+calcSigma($E$4)*$E$3*0.000000001*$E$7*A6/A$3),"") -> 0.40900881 | H6: 15 | I6: 9.368092038 | J6: 9.27387666 | K6: 0.00887653749 | M6: 1.857142857 | N6: =calcSigma($E$4)*$E$3*0.000000001*$E$7*M6/(1+calcSigma($E$4)*$E$3*0.000000001*$E$7*M6) -> 0.07892267558 | O6: 1.78949485
D7: Photon flux at lowest laser intensity [cm-2 s-1] | E7: 5.252050781e+22 | G7: =IF(A7<>"",calcSigma($E$4)*$E$3*0.000000001*$E$7*A7/A$3/(1+calcSigma($E$4)*$E$3*0.000000001*$E$7*A7/A$3),"") ->  | M7: 2.142857143 | N7: =calcSigma($E$4)*$E$3*0.000000001*$E$7*M7/(1+calcSigma($E$4)*$E$3*0.000000001*$E$7*M7) -> 0.08997218785 | O7: 2.040031785
D8: Summed squared deviation | E8: =SUM(K3:K32) -> 0.04093287559 | G8: =IF(A8<>"",calcSigma($E$4)*$E$3*0.000000001*$E$7*A8/A$3/(1+calcSigma($E$4)*$E$3*0.000000001*$E$7*A8/A$3),"") ->  | M8: 2.428571429 | N8: =calcSigma($E$4)*$E$3*0.000000001*$E$7*M8/(1+calcSigma($E$4)*$E$3*0.000000001*$E$7*M8) -> 0.1007597364 | O8: 2.284628948
G9: =IF(A9<>"",calcSigma($E$4)*$E$3*0.000000001*$E$7*A9/A$3/(1+calcSigma($E$4)*$E$3*0.000000001*$E$7*A9/A$3),"") ->  | M9: 2.714285714 | N9: =calcSigma($E$4)*$E$3*0.000000001*$E$7*M9/(1+calcSigma($E$4)*$E$3*0.000000001*$E$7*M9) -> 0.111294528 | O9: 2.523495095
G10: =IF(A10<>"",calcSigma($E$4)*$E$3*0.000000001*$E$7*A10/A$3/(1+calcSigma($E$4)*$E$3*0.000000001*$E$7*A10/A$3),"") ->  | M10: 3 | N10: =calcSigma($E$4)*$E$3*0.000000001*$E$7*M10/(1+calcSigma($E$4)*$E$3*0.000000001*$E$7*M10) -> 0.1215853433 | O10: 2.756829313
G11: =IF(A11<>"",calcSigma($E$4)*$E$3*0.000000001*$E$7*A11/A$3/(1+calcSigma($E$4)*$E$3*0.000000001*$E$7*A11/A$3),"") ->  | M11: 3.285714286 | N11: =calcSigma($E$4)*$E$3*0.000000001*$E$7*M11/(1+calcSigma($E$4)*$E$3*0.000000001*$E$7*M11) -> 0.1316405604 | O11: 2.984821576
G12: =IF(A12<>"",calcSigma($E$4)*$E$3*0.000000001*$E$7*A12/A$3/(1+calcSigma($E$4)*$E$3*0.000000001*$E$7*A12/A$3),"") ->  | M12: 3.571428571 | N12: =calcSigma($E$4)*$E$3*0.000000001*$E$7*M12/(1+calcSigma($E$4)*$E$3*0.000000001*$E$7*M12) -> 0.1414681787 | O12: 3.207653255
G13: =IF(A13<>"",calcSigma($E$4)*$E$3*0.000000001*$E$7*A13/A$3/(1+calcSigma($E$4)*$E$3*0.000000001*$E$7*A13/A$3),"") ->  | M13: 3.857142857 | N13: =calcSigma($E$4)*$E$3*0.000000001*$E$7*M13/(1+calcSigma($E$4)*$E$3*0.000000001*$E$7*M13) -> 0.1510758391 | O13: 3.425497603
G14: =IF(A14<>"",calcSigma($E$4)*$E$3*0.000000001*$E$7*A14/A$3/(1+calcSigma($E$4)*$E$3*0.000000001*$E$7*A14/A$3),"") ->  | M14: 4.142857143 | N14: =calcSigma($E$4)*$E$3*0.000000001*$E$7*M14/(1+calcSigma($E$4)*$E$3*0.000000001*$E$7*M14) -> 0.1604708444 | O14: 3.638520203
G15: =IF(A15<>"",calcSigma($E$4)*$E$3*0.000000001*$E$7*A15/A$3/(1+calcSigma($E$4)*$E$3*0.000000001*$E$7*A15/A$3),"") ->  | M15: 4.428571429 | N15: =calcSigma($E$4)*$E$3*0.000000001*$E$7*M15/(1+calcSigma($E$4)*$E$3*0.000000001*$E$7*M15) -> 0.1696601777 | O15: 3.846879391
G16: =IF(A16<>"",calcSigma($E$4)*$E$3*0.000000001*$E$7*A16/A$3/(1+calcSigma($E$4)*$E$3*0.000000001*$E$7*A16/A$3),"") ->  | M16: 4.714285714 | N16: =calcSigma($E$4)*$E$3*0.000000001*$E$7*M16/(1+calcSigma($E$4)*$E$3*0.000000001*$E$7*M16) -> 0.1786505195 | O16: 4.050726642
G17: =IF(A17<>"",calcSigma($E$4)*$E$3*0.000000001*$E$7*A17/A$3/(1+calcSigma($E$4)*$E$3*0.000000001*$E$7*A17/A$3),"") ->  | M17: 5 | N17: =calcSigma($E$4)*$E$3*0.000000001*$E$7*M17/(1+calcSigma($E$4)*$E$3*0.000000001*$E$7*M17) -> 0.1874482644 | O17: 4.250206942
G18: =IF(A18<>"",calcSigma($E$4)*$E$3*0.000000001*$E$7*A18/A$3/(1+calcSigma($E$4)*$E$3*0.000000001*$E$7*A18/A$3),"") ->  | M18: 5.285714286 | N18: =calcSigma($E$4)*$E$3*0.000000001*$E$7*M18/(1+calcSigma($E$4)*$E$3*0.000000001*$E$7*M18) -> 0.1960595355 | O18: 4.445459134
G19: =IF(A19<>"",calcSigma($E$4)*$E$3*0.000000001*$E$7*A19/A$3/(1+calcSigma($E$4)*$E$3*0.000000001*$E$7*A19/A$3),"") ->  | M19: 5.571428571 | N19: =calcSigma($E$4)*$E$3*0.000000001*$E$7*M19/(1+calcSigma($E$4)*$E$3*0.000000001*$E$7*M19) -> 0.2044901994 | O19: 4.636616231
G20: =IF(A20<>"",calcSigma($E$4)*$E$3*0.000000001*$E$7*A20/A$3/(1+calcSigma($E$4)*$E$3*0.000000001*$E$7*A20/A$3),"") ->  | M20: 5.857142857 | N20: =calcSigma($E$4)*$E$3*0.000000001*$E$7*M20/(1+calcSigma($E$4)*$E$3*0.000000001*$E$7*M20) -> 0.212745879 | O20: 4.823805731
G21: =IF(A21<>"",calcSigma($E$4)*$E$3*0.000000001*$E$7*A21/A$3/(1+calcSigma($E$4)*$E$3*0.000000001*$E$7*A21/A$3),"") ->  | M21: 6.142857143 | N21: =calcSigma($E$4)*$E$3*0.000000001*$E$7*M21/(1+calcSigma($E$4)*$E$3*0.000000001*$E$7*M21) -> 0.2208319662 | O21: 5.007149888
G22: =IF(A22<>"",calcSigma($E$4)*$E$3*0.000000001*$E$7*A22/A$3/(1+calcSigma($E$4)*$E$3*0.000000001*$E$7*A22/A$3),"") ->  | M22: 6.428571429 | N22: =calcSigma($E$4)*$E$3*0.000000001*$E$7*M22/(1+calcSigma($E$4)*$E$3*0.000000001*$E$7*M22) -> 0.2287536337 | O22: 5.186765988
G23: =IF(A23<>"",calcSigma($E$4)*$E$3*0.000000001*$E$7*A23/A$3/(1+calcSigma($E$4)*$E$3*0.000000001*$E$7*A23/A$3),"") ->  | M23: 6.714285714 | N23: =calcSigma($E$4)*$E$3*0.000000001*$E$7*M23/(1+calcSigma($E$4)*$E$3*0.000000001*$E$7*M23) -> 0.2365158459 | O23: 5.362766595
G24: =IF(A24<>"",calcSigma($E$4)*$E$3*0.000000001*$E$7*A24/A$3/(1+calcSigma($E$4)*$E$3*0.000000001*$E$7*A24/A$3),"") ->  | M24: 7 | N24: =calcSigma($E$4)*$E$3*0.000000001*$E$7*M24/(1+calcSigma($E$4)*$E$3*0.000000001*$E$7*M24) -> 0.2441233694 | O24: 5.535259784
G25: =IF(A25<>"",calcSigma($E$4)*$E$3*0.000000001*$E$7*A25/A$3/(1+calcSigma($E$4)*$E$3*0.000000001*$E$7*A25/A$3),"") ->  | M25: 7.285714286 | N25: =calcSigma($E$4)*$E$3*0.000000001*$E$7*M25/(1+calcSigma($E$4)*$E$3*0.000000001*$E$7*M25) -> 0.2515807825 | O25: 5.704349367
G26: =IF(A26<>"",calcSigma($E$4)*$E$3*0.000000001*$E$7*A26/A$3/(1+calcSigma($E$4)*$E$3*0.000000001*$E$7*A26/A$3),"") ->  | M26: 7.571428571 | N26: =calcSigma($E$4)*$E$3*0.000000001*$E$7*M26/(1+calcSigma($E$4)*$E$3*0.000000001*$E$7*M26) -> 0.2588924848 | O26: 5.8701351
G27: =IF(A27<>"",calcSigma($E$4)*$E$3*0.000000001*$E$7*A27/A$3/(1+calcSigma($E$4)*$E$3*0.000000001*$E$7*A27/A$3),"") ->  | M27: 7.857142857 | N27: =calcSigma($E$4)*$E$3*0.000000001*$E$7*M27/(1+calcSigma($E$4)*$E$3*0.000000001*$E$7*M27) -> 0.2660627055 | O27: 6.032712876
G28: =IF(A28<>"",calcSigma($E$4)*$E$3*0.000000001*$E$7*A28/A$3/(1+calcSigma($E$4)*$E$3*0.000000001*$E$7*A28/A$3),"") ->  | M28: 8.142857143 | N28: =calcSigma($E$4)*$E$3*0.000000001*$E$7*M28/(1+calcSigma($E$4)*$E$3*0.000000001*$E$7*M28) -> 0.2730955119 | O28: 6.192174915
G29: =IF(A29<>"",calcSigma($E$4)*$E$3*0.000000001*$E$7*A29/A$3/(1+calcSigma($E$4)*$E$3*0.000000001*$E$7*A29/A$3),"") ->  | M29: 8.428571429 | N29: =calcSigma($E$4)*$E$3*0.000000001*$E$7*M29/(1+calcSigma($E$4)*$E$3*0.000000001*$E$7*M29) -> 0.2799948166 | O29: 6.348609934
G30: =IF(A30<>"",calcSigma($E$4)*$E$3*0.000000001*$E$7*A30/A$3/(1+calcSigma($E$4)*$E$3*0.000000001*$E$7*A30/A$3),"") ->  | M30: 8.714285714 | N30: =calcSigma($E$4)*$E$3*0.000000001*$E$7*M30/(1+calcSigma($E$4)*$E$3*0.000000001*$E$7*M30) -> 0.2867643852 | O30: 6.502103314
G31: =IF(A31<>"",calcSigma($E$4)*$E$3*0.000000001*$E$7*A31/A$3/(1+calcSigma($E$4)*$E$3*0.000000001*$E$7*A31/A$3),"") ->  | M31: 9 | N31: =calcSigma($E$4)*$E$3*0.000000001*$E$7*M31/(1+calcSigma($E$4)*$E$3*0.000000001*$E$7*M31) -> 0.2934078431 | O31: 6.652737255
G32: =IF(A32<>"",calcSigma($E$4)*$E$3*0.000000001*$E$7*A32/A$3/(1+calcSigma($E$4)*$E$3*0.000000001*$E$7*A32/A$3),"") ->  | M32: 9.285714286 | N32: =calcSigma($E$4)*$E$3*0.000000001*$E$7*M32/(1+calcSigma($E$4)*$E$3*0.000000001*$E$7*M32) -> 0.2999286817 | O32: 6.800590923
M33: 9.571428571 | N33: =calcSigma($E$4)*$E$3*0.000000001*$E$7*M33/(1+calcSigma($E$4)*$E$3*0.000000001*$E$7*M33) -> 0.3063302648 | O33: 6.945740588
M34: 9.857142857 | N34: =calcSigma($E$4)*$E$3*0.000000001*$E$7*M34/(1+calcSigma($E$4)*$E$3*0.000000001*$E$7*M34) -> 0.3126158341 | O34: 7.088259755
M35: 10.14285714 | N35: =calcSigma($E$4)*$E$3*0.000000001*$E$7*M35/(1+calcSigma($E$4)*$E$3*0.000000001*$E$7*M35) -> 0.3187885152 | O35: 7.22821929
M36: 10.42857143 | N36: =calcSigma($E$4)*$E$3*0.000000001*$E$7*M36/(1+calcSigma($E$4)*$E$3*0.000000001*$E$7*M36) -> 0.3248513221 | O36: 7.365687535
M37: 10.71428571 | N37: =calcSigma($E$4)*$E$3*0.000000001*$E$7*M37/(1+calcSigma($E$4)*$E$3*0.000000001*$E$7*M37) -> 0.3308071626 | O37: 7.500730421
M38: 11 | N38: =calcSigma($E$4)*$E$3*0.000000001*$E$7*M38/(1+calcSigma($E$4)*$E$3*0.000000001*$E$7*M38) -> 0.3366588427 | O38: 7.633411573
M39: 11.28571429 | N39: =calcSigma($E$4)*$E$3*0.000000001*$E$7*M39/(1+calcSigma($E$4)*$E$3*0.000000001*$E$7*M39) -> 0.3424090713 | O39: 7.763792409
M40: 11.57142857 | N40: =calcSigma($E$4)*$E$3*0.000000001*$E$7*M40/(1+calcSigma($E$4)*$E$3*0.000000001*$E$7*M40) -> 0.348060464 | O40: 7.891932238
M41: 11.85714286 | N41: =calcSigma($E$4)*$E$3*0.000000001*$E$7*M41/(1+calcSigma($E$4)*$E$3*0.000000001*$E$7*M41) -> 0.3536155473 | O41: 8.017888344
M42: 12.14285714 | N42: =calcSigma($E$4)*$E$3*0.000000001*$E$7*M42/(1+calcSigma($E$4)*$E$3*0.000000001*$E$7*M42) -> 0.3590767623 | O42: 8.141716078
M43: 12.42857143 | N43: =calcSigma($E$4)*$E$3*0.000000001*$E$7*M43/(1+calcSigma($E$4)*$E$3*0.000000001*$E$7*M43) -> 0.3644464682 | O43: 8.263468934
M44: 12.71428571 | N44: =calcSigma($E$4)*$E$3*0.000000001*$E$7*M44/(1+calcSigma($E$4)*$E$3*0.000000001*$E$7*M44) -> 0.3697269461 | O44: 8.383198631
M45: 13 | N45: =calcSigma($E$4)*$E$3*0.000000001*$E$7*M45/(1+calcSigma($E$4)*$E$3*0.000000001*$E$7*M45) -> 0.3749204017 | O45: 8.50095518
M46: 13.28571429 | N46: =calcSigma($E$4)*$E$3*0.000000001*$E$7*M46/(1+calcSigma($E$4)*$E$3*0.000000001*$E$7*M46) -> 0.3800289684 | O46: 8.616786959
M47: 13.57142857 | N47: =calcSigma($E$4)*$E$3*0.000000001*$E$7*M47/(1+calcSigma($E$4)*$E$3*0.000000001*$E$7*M47) -> 0.3850547109 | O47: 8.730740777
M48: 13.85714286 | N48: =calcSigma($E$4)*$E$3*0.000000001*$E$7*M48/(1+calcSigma($E$4)*$E$3*0.000000001*$E$7*M48) -> 0.389999627 | O48: 8.842861938
M49: 14.14285714 | N49: =calcSigma($E$4)*$E$3*0.000000001*$E$7*M49/(1+calcSigma($E$4)*$E$3*0.000000001*$E$7*M49) -> 0.3948656512 | O49: 8.953194299
M50: 14.42857143 | N50: =calcSigma($E$4)*$E$3*0.000000001*$E$7*M50/(1+calcSigma($E$4)*$E$3*0.000000001*$E$7*M50) -> 0.3996546563 | O50: 9.061780329
M51: 14.71428571 | N51: =calcSigma($E$4)*$E$3*0.000000001*$E$7*M51/(1+calcSigma($E$4)*$E$3*0.000000001*$E$7*M51) -> 0.4043684567 | O51: 9.168661165
M52: 15 | N52: =calcSigma($E$4)*$E$3*0.000000001*$E$7*M52/(1+calcSigma($E$4)*$E$3*0.000000001*$E$7*M52) -> 0.40900881 | O52: 9.27387666

Sheet alpha
A1: Md (intensity of donor-labeled sample in the FRET channel) | B1: 16161
A2: Ma (intensity of acceptor-labeled sample in the FRET channel) | B2: 2384
A4: Ld (degree of labeling of donor-conjugated antibody) | B4: 2
A5: La (degree of labeling of acceptor-conjugated antibody) | B5: 1.9
A7: Molar absorption coefficient of donor at donor excitation [M-1 cm-1] | B7: ='Global parameter definition'!B9 -> 54589
A8: Molar absorption coefficient of acceptor at donor excitation [M-1 cm-1] | B8: ='Global parameter definition'!B17 -> 5564
A10: Fluorescence lifetime of donor [ns] | B10: ='Global parameter definition'!B8 -> 2.6
A11: Fluorescence lifetime of acceptor [ns] | B11: ='Global parameter definition'!B15 -> 1.4
A13: Photon flux of donor-exciting laser [cm-2 s-1] | B13: ='Global parameter definition'!B26 -> 4.9e+23
A15: Saturation of donor at donor excitation | B15: =calcSigma(B7)*B10*0.000000001*B13/(1+calcSigma(B7)*B10*0.000000001*B13) -> 0.2106680545
A16: Saturation of acceptor at donor excitation | B16: =calcSigma(B8)*B11*0.000000001*B13/(1+calcSigma(B8)*B11*0.000000001*B13) -> 0.01443644664
A18: Classical a | B18: =B2/B1*B4/B5*B7/B8 -> 1.52346483
A19: a considering fluorophore saturation | B19: =B2/B1*B4/B5*B15/B16*B11/B10 -> 1.220133856

Sheet FRET
A1: I1 | B1: I2 | C1: I3 | D1: Classical | G1: Saturation (but not frustrated FRET) | J1: Classical, corrected | M1: S1 | N1: ='Global parameter definition'!B11 -> 0.0704
D2: FRET | E2: ID | F2: IA | G2: FRET | H2: ID | I2: IA | J2: FRET | K2: Mean values | M2: S2 | N2: ='Global parameter definition'!B18 -> 3.59
A3: 21208 | B3: 9649 | C3: 1169 | D3: =IF(A3<>"",fretClassic(A3,B3,C3,$N$1,$N$2,$N$3,$N$4,$N$5,$N$14),"") -> 0.1541216076 | E3: =IF(A3<>"",idClassic(A3,B3,C3,$N$1,$N$2,$N$3,$N$4,$N$5,$N$14),"") -> 25025.41315 | F3: =IF(A3<>"",iaClassic(A3,B3,C3,$N$1,$N$2,$N$3,$N$4,$N$5,$N$14),"") -> 1166.037624 | G3: =IF(A3<>"",fretSat(A3,B3,C3,$N$1,$N$2,$N$3,$N$4,$N$6,$N$16*0.000000001,$N$17*0.000000001,$N$8,$N$9,$N$11,$N$12,$N$19,$N$20),"") -> 0.2524135029 | H3: =IF(A3<>"",idSat(A3,B3,C3,$N$1,$N$2,$N$3,$N$4,$N$6,$N$16*0.000000001,$N$17*0.000000001,$N$8,$N$9,$N$11,$N$12,$N$19,$N$20),"") -> 26810.02652 | I3: =IF(A3<>"",iaSat(A3,B3,C3,$N$1,$N$2,$N$3,$N$4,$N$6,$N$16*0.000000001,$N$17*0.000000001,$N$8,$N$9,$N$11,$N$12,$N$19,$N$20),"") -> 1165.981438 | J3: =IF(A3<>"",D3/(1+$N$22*(D3-1)),"") -> 0.187541402 | K3: Classical FRET | L3: =AVERAGE(D3:D10002) -> 0.1541216076 | M3: S3 | N3: ='Global parameter definition'!B12 -> 0.0001
D4: =IF(A4<>"",fretClassic(A4,B4,C4,$N$1,$N$2,$N$3,$N$4,$N$5,$N$14),"") ->  | E4: =IF(A4<>"",idClassic(A4,B4,C4,$N$1,$N$2,$N$3,$N$4,$N$5,$N$14),"") ->  | F4: =IF(A4<>"",iaClassic(A4,B4,C4,$N$1,$N$2,$N$3,$N$4,$N$5,$N$14),"") ->  | G4: =IF(A4<>"",fretSat(A4,B4,C4,$N$1,$N$2,$N$3,$N$4,$N$6,$N$16*0.000000001,$N$17*0.000000001,$N$8,$N$9,$N$11,$N$12,$N$19,$N$20),"") ->  | H4: =IF(A4<>"",idSat(A4,B4,C4,$N$1,$N$2,$N$3,$N$4,$N$6,$N$16*0.000000001,$N$17*0.000000001,$N$8,$N$9,$N$11,$N$12,$N$19,$N$20),"") ->  | I4: =IF(A4<>"",iaSat(A4,B4,C4,$N$1,$N$2,$N$3,$N$4,$N$6,$N$16*0.000000001,$N$17*0.000000001,$N$8,$N$9,$N$11,$N$12,$N$19,$N$20),"") ->  | J4: =IF(A4<>"",D4/(1+$N$22*(D4-1)),"") ->  | K4: Classical ID | L4: =AVERAGE(E3:E10002) -> 25025.41315 | M4: S4 | N4: ='Global parameter definition'!B19 -> 0.0174
K5: Classical IA | L5: =AVERAGE(F3:F10002) -> 1166.037624 | M5: aClassic | N5: ='Global parameter definition'!B22 -> 1.03
M6: aSat | N6: ='Global parameter definition'!B23 -> 0.564
K7: Saturation FRET | L7: =AVERAGE(G3:G10002) -> 0.2524135029
K8: Saturated ID | L8: =AVERAGE(H3:H10002) -> 26810.02652 | M8: Molar absorption coefficient of donor at donor excitation [M-1 cm-1] | N8: ='Global parameter definition'!B9 -> 54589
K9: Saturated IA | L9: =AVERAGE(I3:I10002) -> 1165.981438 | M9: Molar absorption coefficient of donor at acceptor excitation [M-1 cm-1] | N9: ='Global parameter definition'!B10 -> 291
K11: Classical, corrected FRET | L11: =AVERAGE(J3:J10002) -> 0.187541402 | M11: Molar absorption coefficient of acceptor at acceptor excitation [M-1 cm-1] | N11: ='Global parameter definition'!B16 -> 38818
M12: Molar absorption coefficient of acceptor at donor excitation [M-1 cm-1] | N12: ='Global parameter definition'!B17 -> 5564
M14: e2 ratio | N14: =N12*N9/(N11*N8) -> 0.0007640852497
M16: Fluorescence lifetime of donor [ns] | N16: ='Global parameter definition'!B8 -> 2.6
M17: Fluorescence lifetime of acceptor [ns] | N17: ='Global parameter definition'!B15 -> 1.4
M19: Photon flux of donor-exciting laser [cm-2 s-1] | N19: ='Global parameter definition'!B26 -> 4.9e+23
M20: Photon flux of acceptor-exciting laser [cm-2 s-1] | N20: ='Global parameter definition'!B27 -> 9.5e+21
M22: Saturation of donor at donor excitation | N22: =calcSigma(N8)*N16*0.000000001*N19/(1+calcSigma(N8)*N16*0.000000001*N19) -> 0.2106680545
M23: Saturation of donor at acceptor excitation | N23: =calcSigma(N9)*N16*0.000000001*N20/(1+calcSigma(N9)*N16*0.000000001*N20) -> 2.758305728e-05
M25: Saturation of acceptor at acceptor excitation | N25: =calcSigma(N11)*N17*0.000000001*N20/(1+calcSigma(N11)*N17*0.000000001*N20) -> 0.001977377648
M26: Saturation of acceptor at donor excitation | N26: =calcSigma(N12)*N17*0.000000001*N19/(1+calcSigma(N12)*N17*0.000000001*N19) -> 0.01443644664
D68: =IF(A68<>"",fretClassic(A68,B68,C68,$N$1,$N$2,$N$3,$N$4,$N$5,$N$14),"") ->  | E68: =IF(A68<>"",idClassic(A68,B68,C68,$N$1,$N$2,$N$3,$N$4,$N$5,$N$14),"") ->  | F68: =IF(A68<>"",iaClassic(A68,B68,C68,$N$1,$N$2,$N$3,$N$4,$N$5,$N$14),"") ->  | G68: =IF(A68<>"",fretSat(A68,B68,C68,$N$1,$N$2,$N$3,$N$4,$N$6,$N$16*0.000000001,$N$17*0.000000001,$N$8,$N$9,$N$11,$N$12,$N$19,$N$20),"") ->  | H68: =IF(A68<>"",idSat(A68,B68,C68,$N$1,$N$2,$N$3,$N$4,$N$6,$N$16*0.000000001,$N$17*0.000000001,$N$8,$N$9,$N$11,$N$12,$N$19,$N$20),"") ->  | I68: =IF(A68<>"",iaSat(A68,B68,C68,$N$1,$N$2,$N$3,$N$4,$N$6,$N$16*0.000000001,$N$17*0.000000001,$N$8,$N$9,$N$11,$N$12,$N$19,$N$20),"") ->  | J68: =IF(A68<>"",D68/(1+$N$22*(D68-1)),"") -> 
D132: =IF(A132<>"",fretClassic(A132,B132,C132,$N$1,$N$2,$N$3,$N$4,$N$5,$N$14),"") ->  | E132: =IF(A132<>"",idClassic(A132,B132,C132,$N$1,$N$2,$N$3,$N$4,$N$5,$N$14),"") ->  | F132: =IF(A132<>"",iaClassic(A132,B132,C132,$N$1,$N$2,$N$3,$N$4,$N$5,$N$14),"") ->  | G132: =IF(A132<>"",fretSat(A132,B132,C132,$N$1,$N$2,$N$3,$N$4,$N$6,$N$16*0.000000001,$N$17*0.000000001,$N$8,$N$9,$N$11,$N$12,$N$19,$N$20),"") ->  | H132: =IF(A132<>"",idSat(A132,B132,C132,$N$1,$N$2,$N$3,$N$4,$N$6,$N$16*0.000000001,$N$17*0.000000001,$N$8,$N$9,$N$11,$N$12,$N$19,$N$20),"") ->  | I132: =IF(A132<>"",iaSat(A132,B132,C132,$N$1,$N$2,$N$3,$N$4,$N$6,$N$16*0.000000001,$N$17*0.000000001,$N$8,$N$9,$N$11,$N$12,$N$19,$N$20),"") ->  | J132: =IF(A132<>"",D132/(1+$N$22*(D132-1)),"") -> 
D196: =IF(A196<>"",fretClassic(A196,B196,C196,$N$1,$N$2,$N$3,$N$4,$N$5,$N$14),"") ->  | E196: =IF(A196<>"",idClassic(A196,B196,C196,$N$1,$N$2,$N$3,$N$4,$N$5,$N$14),"") ->  | F196: =IF(A196<>"",iaClassic(A196,B196,C196,$N$1,$N$2,$N$3,$N$4,$N$5,$N$14),"") ->  | G196: =IF(A196<>"",fretSat(A196,B196,C196,$N$1,$N$2,$N$3,$N$4,$N$6,$N$16*0.000000001,$N$17*0.000000001,$N$8,$N$9,$N$11,$N$12,$N$19,$N$20),"") ->  | H196: =IF(A196<>"",idSat(A196,B196,C196,$N$1,$N$2,$N$3,$N$4,$N$6,$N$16*0.000000001,$N$17*0.000000001,$N$8,$N$9,$N$11,$N$12,$N$19,$N$20),"") ->  | I196: =IF(A196<>"",iaSat(A196,B196,C196,$N$1,$N$2,$N$3,$N$4,$N$6,$N$16*0.000000001,$N$17*0.000000001,$N$8,$N$9,$N$11,$N$12,$N$19,$N$20),"") ->  | J196: =IF(A196<>"",D196/(1+$N$22*(D196-1)),"") -> 
D260: =IF(A260<>"",fretClassic(A260,B260,C260,$N$1,$N$2,$N$3,$N$4,$N$5,$N$14),"") ->  | E260: =IF(A260<>"",idClassic(A260,B260,C260,$N$1,$N$2,$N$3,$N$4,$N$5,$N$14),"") ->  | F260: =IF(A260<>"",iaClassic(A260,B260,C260,$N$1,$N$2,$N$3,$N$4,$N$5,$N$14),"") ->  | G260: =IF(A260<>"",fretSat(A260,B260,C260,$N$1,$N$2,$N$3,$N$4,$N$6,$N$16*0.000000001,$N$17*0.000000001,$N$8,$N$9,$N$11,$N$12,$N$19,$N$20),"") ->  | H260: =IF(A260<>"",idSat(A260,B260,C260,$N$1,$N$2,$N$3,$N$4,$N$6,$N$16*0.000000001,$N$17*0.000000001,$N$8,$N$9,$N$11,$N$12,$N$19,$N$20),"") ->  | I260: =IF(A260<>"",iaSat(A260,B260,C260,$N$1,$N$2,$N$3,$N$4,$N$6,$N$16*0.000000001,$N$17*0.000000001,$N$8,$N$9,$N$11,$N$12,$N$19,$N$20),"") ->  | J260: =IF(A260<>"",D260/(1+$N$22*(D260-1)),"") -> 
D324: =IF(A324<>"",fretClassic(A324,B324,C324,$N$1,$N$2,$N$3,$N$4,$N$5,$N$14),"") ->  | E324: =IF(A324<>"",idClassic(A324,B324,C324,$N$1,$N$2,$N$3,$N$4,$N$5,$N$14),"") ->  | F324: =IF(A324<>"",iaClassic(A324,B324,C324,$N$1,$N$2,$N$3,$N$4,$N$5,$N$14),"") ->  | G324: =IF(A324<>"",fretSat(A324,B324,C324,$N$1,$N$2,$N$3,$N$4,$N$6,$N$16*0.000000001,$N$17*0.000000001,$N$8,$N$9,$N$11,$N$12,$N$19,$N$20),"") ->  | H324: =IF(A324<>"",idSat(A324,B324,C324,$N$1,$N$2,$N$3,$N$4,$N$6,$N$16*0.000000001,$N$17*0.000000001,$N$8,$N$9,$N$11,$N$12,$N$19,$N$20),"") ->  | I324: =IF(A324<>"",iaSat(A324,B324,C324,$N$1,$N$2,$N$3,$N$4,$N$6,$N$16*0.000000001,$N$17*0.000000001,$N$8,$N$9,$N$11,$N$12,$N$19,$N$20),"") ->  | J324: =IF(A324<>"",D324/(1+$N$22*(D324-1)),"") -> 
D388: =IF(A388<>"",fretClassic(A388,B388,C388,$N$1,$N$2,$N$3,$N$4,$N$5,$N$14),"") ->  | E388: =IF(A388<>"",idClassic(A388,B388,C388,$N$1,$N$2,$N$3,$N$4,$N$5,$N$14),"") ->  | F388: =IF(A388<>"",iaClassic(A388,B388,C388,$N$1,$N$2,$N$3,$N$4,$N$5,$N$14),"") ->  | G388: =IF(A388<>"",fretSat(A388,B388,C388,$N$1,$N$2,$N$3,$N$4,$N$6,$N$16*0.000000001,$N$17*0.000000001,$N$8,$N$9,$N$11,$N$12,$N$19,$N$20),"") ->  | H388: =IF(A388<>"",idSat(A388,B388,C388,$N$1,$N$2,$N$3,$N$4,$N$6,$N$16*0.000000001,$N$17*0.000000001,$N$8,$N$9,$N$11,$N$12,$N$19,$N$20),"") ->  | I388: =IF(A388<>"",iaSat(A388,B388,C388,$N$1,$N$2,$N$3,$N$4,$N$6,$N$16*0.000000001,$N$17*0.000000001,$N$8,$N$9,$N$11,$N$12,$N$19,$N$20),"") ->  | J388: =IF(A388<>"",D388/(1+$N$22*(D388-1)),"") -> 
D452: =IF(A452<>"",fretClassic(A452,B452,C452,$N$1,$N$2,$N$3,$N$4,$N$5,$N$14),"") ->  | E452: =IF(A452<>"",idClassic(A452,B452,C452,$N$1,$N$2,$N$3,$N$4,$N$5,$N$14),"") ->  | F452: =IF(A452<>"",iaClassic(A452,B452,C452,$N$1,$N$2,$N$3,$N$4,$N$5,$N$14),"") ->  | G452: =IF(A452<>"",fretSat(A452,B452,C452,$N$1,$N$2,$N$3,$N$4,$N$6,$N$16*0.000000001,$N$17*0.000000001,$N$8,$N$9,$N$11,$N$12,$N$19,$N$20),"") ->  | H452: =IF(A452<>"",idSat(A452,B452,C452,$N$1,$N$2,$N$3,$N$4,$N$6,$N$16*0.000000001,$N$17*0.000000001,$N$8,$N$9,$N$11,$N$12,$N$19,$N$20),"") ->  | I452: =IF(A452<>"",iaSat(A452,B452,C452,$N$1,$N$2,$N$3,$N$4,$N$6,$N$16*0.000000001,$N$17*0.000000001,$N$8,$N$9,$N$11,$N$12,$N$19,$N$20),"") ->  | J452: =IF(A452<>"",D452/(1+$N$22*(D452-1)),"") -> 
D516: =IF(A516<>"",fretClassic(A516,B516,C516,$N$1,$N$2,$N$3,$N$4,$N$5,$N$14),"") ->  | E516: =IF(A516<>"",idClassic(A516,B516,C516,$N$1,$N$2,$N$3,$N$4,$N$5,$N$14),"") ->  | F516: =IF(A516<>"",iaClassic(A516,B516,C516,$N$1,$N$2,$N$3,$N$4,$N$5,$N$14),"") ->  | G516: =IF(A516<>"",fretSat(A516,B516,C516,$N$1,$N$2,$N$3,$N$4,$N$6,$N$16*0.000000001,$N$17*0.000000001,$N$8,$N$9,$N$11,$N$12,$N$19,$N$20),"") ->  | H516: =IF(A516<>"",idSat(A516,B516,C516,$N$1,$N$2,$N$3,$N$4,$N$6,$N$16*0.000000001,$N$17*0.000000001,$N$8,$N$9,$N$11,$N$12,$N$19,$N$20),"") ->  | I516: =IF(A516<>"",iaSat(A516,B516,C516,$N$1,$N$2,$N$3,$N$4,$N$6,$N$16*0.000000001,$N$17*0.000000001,$N$8,$N$9,$N$11,$N$12,$N$19,$N$20),"") ->  | J516: =IF(A516<>"",D516/(1+$N$22*(D516-1)),"") -> 
D580: =IF(A580<>"",fretClassic(A580,B580,C580,$N$1,$N$2,$N$3,$N$4,$N$5,$N$14),"") ->  | E580: =IF(A580<>"",idClassic(A580,B580,C580,$N$1,$N$2,$N$3,$N$4,$N$5,$N$14),"") ->  | F580: =IF(A580<>"",iaClassic(A580,B580,C580,$N$1,$N$2,$N$3,$N$4,$N$5,$N$14),"") ->  | G580: =IF(A580<>"",fretSat(A580,B580,C580,$N$1,$N$2,$N$3,$N$4,$N$6,$N$16*0.000000001,$N$17*0.000000001,$N$8,$N$9,$N$11,$N$12,$N$19,$N$20),"") ->  | H580: =IF(A580<>"",idSat(A580,B580,C580,$N$1,$N$2,$N$3,$N$4,$N$6,$N$16*0.000000001,$N$17*0.000000001,$N$8,$N$9,$N$11,$N$12,$N$19,$N$20),"") ->  | I580: =IF(A580<>"",iaSat(A580,B580,C580,$N$1,$N$2,$N$3,$N$4,$N$6,$N$16*0.000000001,$N$17*0.000000001,$N$8,$N$9,$N$11,$N$12,$N$19,$N$20),"") ->  | J580: =IF(A580<>"",D580/(1+$N$22*(D580-1)),"") -> 
D644: =IF(A644<>"",fretClassic(A644,B644,C644,$N$1,$N$2,$N$3,$N$4,$N$5,$N$14),"") ->  | E644: =IF(A644<>"",idClassic(A644,B644,C644,$N$1,$N$2,$N$3,$N$4,$N$5,$N$14),"") ->  | F644: =IF(A644<>"",iaClassic(A644,B644,C644,$N$1,$N$2,$N$3,$N$4,$N$5,$N$14),"") ->  | G644: =IF(A644<>"",fretSat(A644,B644,C644,$N$1,$N$2,$N$3,$N$4,$N$6,$N$16*0.000000001,$N$17*0.000000001,$N$8,$N$9,$N$11,$N$12,$N$19,$N$20),"") ->  | H644: =IF(A644<>"",idSat(A644,B644,C644,$N$1,$N$2,$N$3,$N$4,$N$6,$N$16*0.000000001,$N$17*0.000000001,$N$8,$N$9,$N$11,$N$12,$N$19,$N$20),"") ->  | I644: =IF(A644<>"",iaSat(A644,B644,C644,$N$1,$N$2,$N$3,$N$4,$N$6,$N$16*0.000000001,$N$17*0.000000001,$N$8,$N$9,$N$11,$N$12,$N$19,$N$20),"") ->  | J644: =IF(A644<>"",D644/(1+$N$22*(D644-1)),"") -> 
D708: =IF(A708<>"",fretClassic(A708,B708,C708,$N$1,$N$2,$N$3,$N$4,$N$5,$N$14),"") ->  | E708: =IF(A708<>"",idClassic(A708,B708,C708,$N$1,$N$2,$N$3,$N$4,$N$5,$N$14),"") ->  | F708: =IF(A708<>"",iaClassic(A708,B708,C708,$N$1,$N$2,$N$3,$N$4,$N$5,$N$14),"") ->  | G708: =IF(A708<>"",fretSat(A708,B708,C708,$N$1,$N$2,$N$3,$N$4,$N$6,$N$16*0.000000001,$N$17*0.000000001,$N$8,$N$9,$N$11,$N$12,$N$19,$N$20),"") ->  | H708: =IF(A708<>"",idSat(A708,B708,C708,$N$1,$N$2,$N$3,$N$4,$N$6,$N$16*0.000000001,$N$17*0.000000001,$N$8,$N$9,$N$11,$N$12,$N$19,$N$20),"") ->  | I708: =IF(A708<>"",iaSat(A708,B708,C708,$N$1,$N$2,$N$3,$N$4,$N$6,$N$16*0.000000001,$N$17*0.000000001,$N$8,$N$9,$N$11,$N$12,$N$19,$N$20),"") ->  | J708: =IF(A708<>"",D708/(1+$N$22*(D708-1)),"") -> 
D772: =IF(A772<>"",fretClassic(A772,B772,C772,$N$1,$N$2,$N$3,$N$4,$N$5,$N$14),"") ->  | E772: =IF(A772<>"",idClassic(A772,B772,C772,$N$1,$N$2,$N$3,$N$4,$N$5,$N$14),"") ->  | F772: =IF(A772<>"",iaClassic(A772,B772,C772,$N$1,$N$2,$N$3,$N$4,$N$5,$N$14),"") ->  | G772: =IF(A772<>"",fretSat(A772,B772,C772,$N$1,$N$2,$N$3,$N$4,$N$6,$N$16*0.000000001,$N$17*0.000000001,$N$8,$N$9,$N$11,$N$12,$N$19,$N$20),"") ->  | H772: =IF(A772<>"",idSat(A772,B772,C772,$N$1,$N$2,$N$3,$N$4,$N$6,$N$16*0.000000001,$N$17*0.000000001,$N$8,$N$9,$N$11,$N$12,$N$19,$N$20),"") ->  | I772: =IF(A772<>"",iaSat(A772,B772,C772,$N$1,$N$2,$N$3,$N$4,$N$6,$N$16*0.000000001,$N$17*0.000000001,$N$8,$N$9,$N$11,$N$12,$N$19,$N$20),"") ->  | J772: =IF(A772<>"",D772/(1+$N$22*(D772-1)),"") -> 
D836: =IF(A836<>"",fretClassic(A836,B836,C836,$N$1,$N$2,$N$3,$N$4,$N$5,$N$14),"") ->  | E836: =IF(A836<>"",idClassic(A836,B836,C836,$N$1,$N$2,$N$3,$N$4,$N$5,$N$14),"") ->  | F836: =IF(A836<>"",iaClassic(A836,B836,C836,$N$1,$N$2,$N$3,$N$4,$N$5,$N$14),"") ->  | G836: =IF(A836<>"",fretSat(A836,B836,C836,$N$1,$N$2,$N$3,$N$4,$N$6,$N$16*0.000000001,$N$17*0.000000001,$N$8,$N$9,$N$11,$N$12,$N$19,$N$20),"") ->  | H836: =IF(A836<>"",idSat(A836,B836,C836,$N$1,$N$2,$N$3,$N$4,$N$6,$N$16*0.000000001,$N$17*0.000000001,$N$8,$N$9,$N$11,$N$12,$N$19,$N$20),"") ->  | I836: =IF(A836<>"",iaSat(A836,B836,C836,$N$1,$N$2,$N$3,$N$4,$N$6,$N$16*0.000000001,$N$17*0.000000001,$N$8,$N$9,$N$11,$N$12,$N$19,$N$20),"") ->  | J836: =IF(A836<>"",D836/(1+$N$22*(D836-1)),"") -> 
D900: =IF(A900<>"",fretClassic(A900,B900,C900,$N$1,$N$2,$N$3,$N$4,$N$5,$N$14),"") ->  | E900: =IF(A900<>"",idClassic(A900,B900,C900,$N$1,$N$2,$N$3,$N$4,$N$5,$N$14),"") ->  | F900: =IF(A900<>"",iaClassic(A900,B900,C900,$N$1,$N$2,$N$3,$N$4,$N$5,$N$14),"") ->  | G900: =IF(A900<>"",fretSat(A900,B900,C900,$N$1,$N$2,$N$3,$N$4,$N$6,$N$16*0.000000001,$N$17*0.000000001,$N$8,$N$9,$N$11,$N$12,$N$19,$N$20),"") ->  | H900: =IF(A900<>"",idSat(A900,B900,C900,$N$1,$N$2,$N$3,$N$4,$N$6,$N$16*0.000000001,$N$17*0.000000001,$N$8,$N$9,$N$11,$N$12,$N$19,$N$20),"") ->  | I900: =IF(A900<>"",iaSat(A900,B900,C900,$N$1,$N$2,$N$3,$N$4,$N$6,$N$16*0.000000001,$N$17*0.000000001,$N$8,$N$9,$N$11,$N$12,$N$19,$N$20),"") ->  | J900: =IF(A900<>"",D900/(1+$N$22*(D900-1)),"") -> 
D964: =IF(A964<>"",fretClassic(A964,B964,C964,$N$1,$N$2,$N$3,$N$4,$N$5,$N$14),"") ->  | E964: =IF(A964<>"",idClassic(A964,B964,C964,$N$1,$N$2,$N$3,$N$4,$N$5,$N$14),"") ->  | F964: =IF(A964<>"",iaClassic(A964,B964,C964,$N$1,$N$2,$N$3,$N$4,$N$5,$N$14),"") ->  | G964: =IF(A964<>"",fretSat(A964,B964,C964,$N$1,$N$2,$N$3,$N$4,$N$6,$N$16*0.000000001,$N$17*0.000000001,$N$8,$N$9,$N$11,$N$12,$N$19,$N$20),"") ->  | H964: =IF(A964<>"",idSat(A964,B964,C964,$N$1,$N$2,$N$3,$N$4,$N$6,$N$16*0.000000001,$N$17*0.000000001,$N$8,$N$9,$N$11,$N$12,$N$19,$N$20),"") ->  | I964: =IF(A964<>"",iaSat(A964,B964,C964,$N$1,$N$2,$N$3,$N$4,$N$6,$N$16*0.000000001,$N$17*0.000000001,$N$8,$N$9,$N$11,$N$12,$N$19,$N$20),"") ->  | J964: =IF(A964<>"",D964/(1+$N$22*(D964-1)),"") -> 
D1028: =IF(A1028<>"",fretClassic(A1028,B1028,C1028,$N$1,$N$2,$N$3,$N$4,$N$5,$N$14),"") ->  | E1028: =IF(A1028<>"",idClassic(A1028,B1028,C1028,$N$1,$N$2,$N$3,$N$4,$N$5,$N$14),"") ->  | F1028: =IF(A1028<>"",iaClassic(A1028,B1028,C1028,$N$1,$N$2,$N$3,$N$4,$N$5,$N$14),"") ->  | G1028: =IF(A1028<>"",fretSat(A1028,B1028,C1028,$N$1,$N$2,$N$3,$N$4,$N$6,$N$16*0.000000001,$N$17*0.000000001,$N$8,$N$9,$N$11,$N$12,$N$19,$N$20),"") ->  | H1028: =IF(A1028<>"",idSat(A1028,B1028,C1028,$N$1,$N$2,$N$3,$N$4,$N$6,$N$16*0.000000001,$N$17*0.000000001,$N$8,$N$9,$N$11,$N$12,$N$19,$N$20),"") ->  | I1028: =IF(A1028<>"",iaSat(A1028,B1028,C1028,$N$1,$N$2,$N$3,$N$4,$N$6,$N$16*0.000000001,$N$17*0.000000001,$N$8,$N$9,$N$11,$N$12,$N$19,$N$20),"") ->  | J1028: =IF(A1028<>"",D1028/(1+$N$22*(D1028-1)),"") -> 
D1092: =IF(A1092<>"",fretClassic(A1092,B1092,C1092,$N$1,$N$2,$N$3,$N$4,$N$5,$N$14),"") ->  | E1092: =IF(A1092<>"",idClassic(A1092,B1092,C1092,$N$1,$N$2,$N$3,$N$4,$N$5,$N$14),"") ->  | F1092: =IF(A1092<>"",iaClassic(A1092,B1092,C1092,$N$1,$N$2,$N$3,$N$4,$N$5,$N$14),"") ->  | G1092: =IF(A1092<>"",fretSat(A1092,B1092,C1092,$N$1,$N$2,$N$3,$N$4,$N$6,$N$16*0.000000001,$N$17*0.000000001,$N$8,$N$9,$N$11,$N$12,$N$19,$N$20),"") ->  | H1092: =IF(A1092<>"",idSat(A1092,B1092,C1092,$N$1,$N$2,$N$3,$N$4,$N$6,$N$16*0.000000001,$N$17*0.000000001,$N$8,$N$9,$N$11,$N$12,$N$19,$N$20),"") ->  | I1092: =IF(A1092<>"",iaSat(A1092,B1092,C1092,$N$1,$N$2,$N$3,$N$4,$N$6,$N$16*0.000000001,$N$17*0.000000001,$N$8,$N$9,$N$11,$N$12,$N$19,$N$20),"") ->  | J1092: =IF(A1092<>"",D1092/(1+$N$22*(D1092-1)),"") -> 
D1156: =IF(A1156<>"",fretClassic(A1156,B1156,C1156,$N$1,$N$2,$N$3,$N$4,$N$5,$N$14),"") ->  | E1156: =IF(A1156<>"",idClassic(A1156,B1156,C1156,$N$1,$N$2,$N$3,$N$4,$N$5,$N$14),"") ->  | F1156: =IF(A1156<>"",iaClassic(A1156,B1156,C1156,$N$1,$N$2,$N$3,$N$4,$N$5,$N$14),"") ->  | G1156: =IF(A1156<>"",fretSat(A1156,B1156,C1156,$N$1,$N$2,$N$3,$N$4,$N$6,$N$16*0.000000001,$N$17*0.000000001,$N$8,$N$9,$N$11,$N$12,$N$19,$N$20),"") ->  | H1156: =IF(A1156<>"",idSat(A1156,B1156,C1156,$N$1,$N$2,$N$3,$N$4,$N$6,$N$16*0.000000001,$N$17*0.000000001,$N$8,$N$9,$N$11,$N$12,$N$19,$N$20),"") ->  | I1156: =IF(A1156<>"",iaSat(A1156,B1156,C1156,$N$1,$N$2,$N$3,$N$4,$N$6,$N$16*0.000000001,$N$17*0.000000001,$N$8,$N$9,$N$11,$N$12,$N$19,$N$20),"") ->  | J1156: =IF(A1156<>"",D1156/(1+$N$22*(D1156-1)),"") -> 
D1220: =IF(A1220<>"",fretClassic(A1220,B1220,C1220,$N$1,$N$2,$N$3,$N$4,$N$5,$N$14),"") ->  | E1220: =IF(A1220<>"",idClassic(A1220,B1220,C1220,$N$1,$N$2,$N$3,$N$4,$N$5,$N$14),"") ->  | F1220: =IF(A1220<>"",iaClassic(A1220,B1220,C1220,$N$1,$N$2,$N$3,$N$4,$N$5,$N$14),"") ->  | G1220: =IF(A1220<>"",fretSat(A1220,B1220,C1220,$N$1,$N$2,$N$3,$N$4,$N$6,$N$16*0.000000001,$N$17*0.000000001,$N$8,$N$9,$N$11,$N$12,$N$19,$N$20),"") ->  | H1220: =IF(A1220<>"",idSat(A1220,B1220,C1220,$N$1,$N$2,$N$3,$N$4,$N$6,$N$16*0.000000001,$N$17*0.000000001,$N$8,$N$9,$N$11,$N$12,$N$19,$N$20),"") ->  | I1220: =IF(A1220<>"",iaSat(A1220,B1220,C1220,$N$1,$N$2,$N$3,$N$4,$N$6,$N$16*0.000000001,$N$17*0.000000001,$N$8,$N$9,$N$11,$N$12,$N$19,$N$20),"") ->  | J1220: =IF(A1220<>"",D1220/(1+$N$22*(D1220-1)),"") -> 
D1284: =IF(A1284<>"",fretClassic(A1284,B1284,C1284,$N$1,$N$2,$N$3,$N$4,$N$5,$N$14),"") ->  | E1284: =IF(A1284<>"",idClassic(A1284,B1284,C1284,$N$1,$N$2,$N$3,$N$4,$N$5,$N$14),"") ->  | F1284: =IF(A1284<>"",iaClassic(A1284,B1284,C1284,$N$1,$N$2,$N$3,$N$4,$N$5,$N$14),"") ->  | G1284: =IF(A1284<>"",fretSat(A1284,B1284,C1284,$N$1,$N$2,$N$3,$N$4,$N$6,$N$16*0.000000001,$N$17*0.000000001,$N$8,$N$9,$N$11,$N$12,$N$19,$N$20),"") ->  | H1284: =IF(A1284<>"",idSat(A1284,B1284,C1284,$N$1,$N$2,$N$3,$N$4,$N$6,$N$16*0.000000001,$N$17*0.000000001,$N$8,$N$9,$N$11,$N$12,$N$19,$N$20),"") ->  | I1284: =IF(A1284<>"",iaSat(A1284,B1284,C1284,$N$1,$N$2,$N$3,$N$4,$N$6,$N$16*0.000000001,$N$17*0.000000001,$N$8,$N$9,$N$11,$N$12,$N$19,$N$20),"") ->  | J1284: =IF(A1284<>"",D1284/(1+$N$22*(D1284-1)),"") -> 
D1348: =IF(A1348<>"",fretClassic(A1348,B1348,C1348,$N$1,$N$2,$N$3,$N$4,$N$5,$N$14),"") ->  | E1348: =IF(A1348<>"",idClassic(A1348,B1348,C1348,$N$1,$N$2,$N$3,$N$4,$N$5,$N$14),"") ->  | F1348: =IF(A1348<>"",iaClassic(A1348,B1348,C1348,$N$1,$N$2,$N$3,$N$4,$N$5,$N$14),"") ->  | G1348: =IF(A1348<>"",fretSat(A1348,B1348,C1348,$N$1,$N$2,$N$3,$N$4,$N$6,$N$16*0.000000001,$N$17*0.000000001,$N$8,$N$9,$N$11,$N$12,$N$19,$N$20),"") ->  | H1348: =IF(A1348<>"",idSat(A1348,B1348,C1348,$N$1,$N$2,$N$3,$N$4,$N$6,$N$16*0.000000001,$N$17*0.000000001,$N$8,$N$9,$N$11,$N$12,$N$19,$N$20),"") ->  | I1348: =IF(A1348<>"",iaSat(A1348,B1348,C1348,$N$1,$N$2,$N$3,$N$4,$N$6,$N$16*0.000000001,$N$17*0.000000001,$N$8,$N$9,$N$11,$N$12,$N$19,$N$20),"") ->  | J1348: =IF(A1348<>"",D1348/(1+$N$22*(D1348-1)),"") -> 
D1412: =IF(A1412<>"",fretClassic(A1412,B1412,C1412,$N$1,$N$2,$N$3,$N$4,$N$5,$N$14),"") ->  | E1412: =IF(A1412<>"",idClassic(A1412,B1412,C1412,$N$1,$N$2,$N$3,$N$4,$N$5,$N$14),"") ->  | F1412: =IF(A1412<>"",iaClassic(A1412,B1412,C1412,$N$1,$N$2,$N$3,$N$4,$N$5,$N$14),"") ->  | G1412: =IF(A1412<>"",fretSat(A1412,B1412,C1412,$N$1,$N$2,$N$3,$N$4,$N$6,$N$16*0.000000001,$N$17*0.000000001,$N$8,$N$9,$N$11,$N$12,$N$19,$N$20),"") ->  | H1412: =IF(A1412<>"",idSat(A1412,B1412,C1412,$N$1,$N$2,$N$3,$N$4,$N$6,$N$16*0.000000001,$N$17*0.000000001,$N$8,$N$9,$N$11,$N$12,$N$19,$N$20),"") ->  | I1412: =IF(A1412<>"",iaSat(A1412,B1412,C1412,$N$1,$N$2,$N$3,$N$4,$N$6,$N$16*0.000000001,$N$17*0.000000001,$N$8,$N$9,$N$11,$N$12,$N$19,$N$20),"") ->  | J1412: =IF(A1412<>"",D1412/(1+$N$22*(D1412-1)),"") -> 
D1476: =IF(A1476<>"",fretClassic(A1476,B1476,C1476,$N$1,$N$2,$N$3,$N$4,$N$5,$N$14),"") ->  | E1476: =IF(A1476<>"",idClassic(A1476,B1476,C1476,$N$1,$N$2,$N$3,$N$4,$N$5,$N$14),"") ->  | F1476: =IF(A1476<>"",iaClassic(A1476,B1476,C1476,$N$1,$N$2,$N$3,$N$4,$N$5,$N$14),"") ->  | G1476: =IF(A1476<>"",fretSat(A1476,B1476,C1476,$N$1,$N$2,$N$3,$N$4,$N$6,$N$16*0.000000001,$N$17*0.000000001,$N$8,$N$9,$N$11,$N$12,$N$19,$N$20),"") ->  | H1476: =IF(A1476<>"",idSat(A1476,B1476,C1476,$N$1,$N$2,$N$3,$N$4,$N$6,$N$16*0.000000001,$N$17*0.000000001,$N$8,$N$9,$N$11,$N$12,$N$19,$N$20),"") ->  | I1476: =IF(A1476<>"",iaSat(A1476,B1476,C1476,$N$1,$N$2,$N$3,$N$4,$N$6,$N$16*0.000000001,$N$17*0.000000001,$N$8,$N$9,$N$11,$N$12,$N$19,$N$20),"") ->  | J1476: =IF(A1476<>"",D1476/(1+$N$22*(D1476-1)),"") -> 
D1540: =IF(A1540<>"",fretClassic(A1540,B1540,C1540,$N$1,$N$2,$N$3,$N$4,$N$5,$N$14),"") ->  | E1540: =IF(A1540<>"",idClassic(A1540,B1540,C1540,$N$1,$N$2,$N$3,$N$4,$N$5,$N$14),"") ->  | F1540: =IF(A1540<>"",iaClassic(A1540,B1540,C1540,$N$1,$N$2,$N$3,$N$4,$N$5,$N$14),"") ->  | G1540: =IF(A1540<>"",fretSat(A1540,B1540,C1540,$N$1,$N$2,$N$3,$N$4,$N$6,$N$16*0.000000001,$N$17*0.000000001,$N$8,$N$9,$N$11,$N$12,$N$19,$N$20),"") ->  | H1540: =IF(A1540<>"",idSat(A1540,B1540,C1540,$N$1,$N$2,$N$3,$N$4,$N$6,$N$16*0.000000001,$N$17*0.000000001,$N$8,$N$9,$N$11,$N$12,$N$19,$N$20),"") ->  | I1540: =IF(A1540<>"",iaSat(A1540,B1540,C1540,$N$1,$N$2,$N$3,$N$4,$N$6,$N$16*0.000000001,$N$17*0.000000001,$N$8,$N$9,$N$11,$N$12,$N$19,$N$20),"") ->  | J1540: =IF(A1540<>"",D1540/(1+$N$22*(D1540-1)),"") -> 
D1604: =IF(A1604<>"",fretClassic(A1604,B1604,C1604,$N$1,$N$2,$N$3,$N$4,$N$5,$N$14),"") ->  | E1604: =IF(A1604<>"",idClassic(A1604,B1604,C1604,$N$1,$N$2,$N$3,$N$4,$N$5,$N$14),"") ->  | F1604: =IF(A1604<>"",iaClassic(A1604,B1604,C1604,$N$1,$N$2,$N$3,$N$4,$N$5,$N$14),"") ->  | G1604: =IF(A1604<>"",fretSat(A1604,B1604,C1604,$N$1,$N$2,$N$3,$N$4,$N$6,$N$16*0.000000001,$N$17*0.000000001,$N$8,$N$9,$N$11,$N$12,$N$19,$N$20),"") ->  | H1604: =IF(A1604<>"",idSat(A1604,B1604,C1604,$N$1,$N$2,$N$3,$N$4,$N$6,$N$16*0.000000001,$N$17*0.000000001,$N$8,$N$9,$N$11,$N$12,$N$19,$N$20),"") ->  | I1604: =IF(A1604<>"",iaSat(A1604,B1604,C1604,$N$1,$N$2,$N$3,$N$4,$N$6,$N$16*0.000000001,$N$17*0.000000001,$N$8,$N$9,$N$11,$N$12,$N$19,$N$20),"") ->  | J1604: =IF(A1604<>"",D1604/(1+$N$22*(D1604-1)),"") -> 
D1668: =IF(A1668<>"",fretClassic(A1668,B1668,C1668,$N$1,$N$2,$N$3,$N$4,$N$5,$N$14),"") ->  | E1668: =IF(A1668<>"",idClassic(A1668,B1668,C1668,$N$1,$N$2,$N$3,$N$4,$N$5,$N$14),"") ->  | F1668: =IF(A1668<>"",iaClassic(A1668,B1668,C1668,$N$1,$N$2,$N$3,$N$4,$N$5,$N$14),"") ->  | G1668: =IF(A1668<>"",fretSat(A1668,B1668,C1668,$N$1,$N$2,$N$3,$N$4,$N$6,$N$16*0.000000001,$N$17*0.000000001,$N$8,$N$9,$N$11,$N$12,$N$19,$N$20),"") ->  | H1668: =IF(A1668<>"",idSat(A1668,B1668,C1668,$N$1,$N$2,$N$3,$N$4,$N$6,$N$16*0.000000001,$N$17*0.000000001,$N$8,$N$9,$N$11,$N$12,$N$19,$N$20),"") ->  | I1668: =IF(A1668<>"",iaSat(A1668,B1668,C1668,$N$1,$N$2,$N$3,$N$4,$N$6,$N$16*0.000000001,$N$17*0.000000001,$N$8,$N$9,$N$11,$N$12,$N$19,$N$20),"") ->  | J1668: =IF(A1668<>"",D1668/(1+$N$22*(D1668-1)),"") -> 
D1732: =IF(A1732<>"",fretClassic(A1732,B1732,C1732,$N$1,$N$2,$N$3,$N$4,$N$5,$N$14),"") ->  | E1732: =IF(A1732<>"",idClassic(A1732,B1732,C1732,$N$1,$N$2,$N$3,$N$4,$N$5,$N$14),"") ->  | F1732: =IF(A1732<>"",iaClassic(A1732,B1732,C1732,$N$1,$N$2,$N$3,$N$4,$N$5,$N$14),"") ->  | G1732: =IF(A1732<>"",fretSat(A1732,B1732,C1732,$N$1,$N$2,$N$3,$N$4,$N$6,$N$16*0.000000001,$N$17*0.000000001,$N$8,$N$9,$N$11,$N$12,$N$19,$N$20),"") ->  | H1732: =IF(A1732<>"",idSat(A1732,B1732,C1732,$N$1,$N$2,$N$3,$N$4,$N$6,$N$16*0.000000001,$N$17*0.000000001,$N$8,$N$9,$N$11,$N$12,$N$19,$N$20),"") ->  | I1732: =IF(A1732<>"",iaSat(A1732,B1732,C1732,$N$1,$N$2,$N$3,$N$4,$N$6,$N$16*0.000000001,$N$17*0.000000001,$N$8,$N$9,$N$11,$N$12,$N$19,$N$20),"") ->  | J1732: =IF(A1732<>"",D1732/(1+$N$22*(D1732-1)),"") -> 
D1796: =IF(A1796<>"",fretClassic(A1796,B1796,C1796,$N$1,$N$2,$N$3,$N$4,$N$5,$N$14),"") ->  | E1796: =IF(A1796<>"",idClassic(A1796,B1796,C1796,$N$1,$N$2,$N$3,$N$4,$N$5,$N$14),"") ->  | F1796: =IF(A1796<>"",iaClassic(A1796,B1796,C1796,$N$1,$N$2,$N$3,$N$4,$N$5,$N$14),"") ->  | G1796: =IF(A1796<>"",fretSat(A1796,B1796,C1796,$N$1,$N$2,$N$3,$N$4,$N$6,$N$16*0.000000001,$N$17*0.000000001,$N$8,$N$9,$N$11,$N$12,$N$19,$N$20),"") ->  | H1796: =IF(A1796<>"",idSat(A1796,B1796,C1796,$N$1,$N$2,$N$3,$N$4,$N$6,$N$16*0.000000001,$N$17*0.000000001,$N$8,$N$9,$N$11,$N$12,$N$19,$N$20),"") ->  | I1796: =IF(A1796<>"",iaSat(A1796,B1796,C1796,$N$1,$N$2,$N$3,$N$4,$N$6,$N$16*0.000000001,$N$17*0.000000001,$N$8,$N$9,$N$11,$N$12,$N$19,$N$20),"") ->  | J1796: =IF(A1796<>"",D1796/(1+$N$22*(D1796-1)),"") -> 
D1860: =IF(A1860<>"",fretClassic(A1860,B1860,C1860,$N$1,$N$2,$N$3,$N$4,$N$5,$N$14),"") ->  | E1860: =IF(A1860<>"",idClassic(A1860,B1860,C1860,$N$1,$N$2,$N$3,$N$4,$N$5,$N$14),"") ->  | F1860: =IF(A1860<>"",iaClassic(A1860,B1860,C1860,$N$1,$N$2,$N$3,$N$4,$N$5,$N$14),"") ->  | G1860: =IF(A1860<>"",fretSat(A1860,B1860,C1860,$N$1,$N$2,$N$3,$N$4,$N$6,$N$16*0.000000001,$N$17*0.000000001,$N$8,$N$9,$N$11,$N$12,$N$19,$N$20),"") ->  | H1860: =IF(A1860<>"",idSat(A1860,B1860,C1860,$N$1,$N$2,$N$3,$N$4,$N$6,$N$16*0.000000001,$N$17*0.000000001,$N$8,$N$9,$N$11,$N$12,$N$19,$N$20),"") ->  | I1860: =IF(A1860<>"",iaSat(A1860,B1860,C1860,$N$1,$N$2,$N$3,$N$4,$N$6,$N$16*0.000000001,$N$17*0.000000001,$N$8,$N$9,$N$11,$N$12,$N$19,$N$20),"") ->  | J1860: =IF(A1860<>"",D1860/(1+$N$22*(D1860-1)),"") -> 
D1924: =IF(A1924<>"",fretClassic(A1924,B1924,C1924,$N$1,$N$2,$N$3,$N$4,$N$5,$N$14),"") ->  | E1924: =IF(A1924<>"",idClassic(A1924,B1924,C1924,$N$1,$N$2,$N$3,$N$4,$N$5,$N$14),"") ->  | F1924: =IF(A1924<>"",iaClassic(A1924,B1924,C1924,$N$1,$N$2,$N$3,$N$4,$N$5,$N$14),"") ->  | G1924: =IF(A1924<>"",fretSat(A1924,B1924,C1924,$N$1,$N$2,$N$3,$N$4,$N$6,$N$16*0.000000001,$N$17*0.000000001,$N$8,$N$9,$N$11,$N$12,$N$19,$N$20),"") ->  | H1924: =IF(A1924<>"",idSat(A1924,B1924,C1924,$N$1,$N$2,$N$3,$N$4,$N$6,$N$16*0.000000001,$N$17*0.000000001,$N$8,$N$9,$N$11,$N$12,$N$19,$N$20),"") ->  | I1924: =IF(A1924<>"",iaSat(A1924,B1924,C1924,$N$1,$N$2,$N$3,$N$4,$N$6,$N$16*0.000000001,$N$17*0.000000001,$N$8,$N$9,$N$11,$N$12,$N$19,$N$20),"") ->  | J1924: =IF(A1924<>"",D1924/(1+$N$22*(D1924-1)),"") -> 
D1988: =IF(A1988<>"",fretClassic(A1988,B1988,C1988,$N$1,$N$2,$N$3,$N$4,$N$5,$N$14),"") ->  | E1988: =IF(A1988<>"",idClassic(A1988,B1988,C1988,$N$1,$N$2,$N$3,$N$4,$N$5,$N$14),"") ->  | F1988: =IF(A1988<>"",iaClassic(A1988,B1988,C1988,$N$1,$N$2,$N$3,$N$4,$N$5,$N$14),"") ->  | G1988: =IF(A1988<>"",fretSat(A1988,B1988,C1988,$N$1,$N$2,$N$3,$N$4,$N$6,$N$16*0.000000001,$N$17*0.000000001,$N$8,$N$9,$N$11,$N$12,$N$19,$N$20),"") ->  | H1988: =IF(A1988<>"",idSat(A1988,B1988,C1988,$N$1,$N$2,$N$3,$N$4,$N$6,$N$16*0.000000001,$N$17*0.000000001,$N$8,$N$9,$N$11,$N$12,$N$19,$N$20),"") ->  | I1988: =IF(A1988<>"",iaSat(A1988,B1988,C1988,$N$1,$N$2,$N$3,$N$4,$N$6,$N$16*0.000000001,$N$17*0.000000001,$N$8,$N$9,$N$11,$N$12,$N$19,$N$20),"") ->  | J1988: =IF(A1988<>"",D1988/(1+$N$22*(D1988-1)),"") -> 
... 37 more rows

Sheet FRET D per A constant
A1: I1 | B1: I2 | C1: I3 | F1: S1 | G1: ='Global parameter definition'!B11 -> 0.0704
D2: Mean values | F2: S2 | G2: ='Global parameter definition'!B18 -> 3.59
A3: 6639 | B3: 2785 | C3: 212 | D3: Classical FRET | E3: =fretClassic2(AVERAGE($A$3:$A$10002),AVERAGE($B$3:$B$10002),AVERAGE($C$3:$C$10002),$G$6,$G$1,$G$2,$G$3,$G$4,$G$14,$G$15) -> 0.2100241126 | F3: S3 | G3: ='Global parameter definition'!B12 -> 0.0001
D4: Classical ID | E4: =idClassic2(AVERAGE($A$3:$A$10002),AVERAGE($B$3:$B$10002),AVERAGE($C$3:$C$10002),$G$6,$G$1,$G$2,$G$3,$G$4,$G$14,$G$15) -> 8389.829698 | F4: S4 | G4: ='Global parameter definition'!B19 -> 0.0174
D5: Classical IA | E5: =iaClassic2(AVERAGE($A$3:$A$10002),AVERAGE($B$3:$B$10002),AVERAGE($C$3:$C$10002),$G$6,$G$1,$G$2,$G$3,$G$4,$G$14,$G$15) -> 211.0050068
D6: Classical a | E6: =E5/E4*G2*G6*G14 -> 0.8858334609 | F6: Ratio of donor to acceptor | G6: 1
D8: Saturation FRET | E8: =fretSat2(AVERAGE($A$3:$A$10002),AVERAGE($B$3:$B$10002),AVERAGE($C$3:$C$10002), $G$6,$G$1,$G$2,$G$3,$G$4,$G$17*0.000000001,$G$18*0.000000001, calcSigma($G$8),calcSigma(G9),calcSigma(G11),calcSigma(G12),$G$20,$G$21) -> 0.2520075056 | F8: Molar absorption coefficient of donor at donor excitation [M-1 cm-1] | G8: ='Global parameter definition'!B9 -> 54589
D9: Saturated ID | E9: =idSat2(AVERAGE($A$3:$A$10002),AVERAGE($B$3:$B$10002),AVERAGE($C$3:$C$10002), $G$6,$G$1,$G$2,$G$3,$G$4,$G$17*0.000000001,$G$18*0.000000001, calcSigma($G$8),calcSigma(G9),calcSigma(G11),calcSigma(G12),$G$20,$G$21) -> 8390.319045 | F9: Molar absorption coefficient of donor at acceptor excitation [M-1 cm-1] | G9: ='Global parameter definition'!B10 -> 291
D10: Saturated IA | E10: =iaSat2(AVERAGE($A$3:$A$10002),AVERAGE($B$3:$B$10002),AVERAGE($C$3:$C$10002), $G$6,$G$1,$G$2,$G$3,$G$4,$G$17*0.000000001,$G$18*0.000000001, calcSigma($G$8),calcSigma(G9),calcSigma(G11),calcSigma(G12),$G$20,$G$21) -> 210.9738467
D11: Saturation a | E11: =E10/E9*G2*G6*G23/G27*G18/G17 -> 0.7093125715 | F11: Molar absorption coefficient of acceptor at acceptor excitation [M-1 cm-1] | G11: ='Global parameter definition'!B16 -> 38818
F12: Molar absorption coefficient of acceptor at donor excitation [M-1 cm-1] | G12: ='Global parameter definition'!B17 -> 5564
D13: Classical, corrected FRET | E13: =E3/(1+$G$23*(E3-1)) -> 0.2519551677
F14: e1 ratio | G14: =G8/G12 -> 9.811107117
F15: e2 ratio | G15: =G12*G9/(G11*G8) -> 0.0007640852497
F17: Fluorescence lifetime of donor [ns] | G17: ='Global parameter definition'!B8 -> 2.6
F18: Fluorescence lifetime of acceptor [ns] | G18: ='Global parameter definition'!B15 -> 1.4
F20: Photon flux of donor-exciting laser [cm-2 s-1] | G20: ='Global parameter definition'!B26 -> 4.9e+23
F21: Photon flux of acceptor-exciting laser [cm-2 s-1] | G21: ='Global parameter definition'!B27 -> 9.5e+21
F23: Saturation of donor at donor excitation | G23: =calcSigma(G8)*G17*0.000000001*G20/(1+calcSigma(G8)*G17*0.000000001*G20) -> 0.2106680545
F24: Saturation of donor at acceptor excitation | G24: =calcSigma(G9)*G17*0.000000001*G21/(1+calcSigma(G9)*G17*0.000000001*G21) -> 2.758305728e-05
F26: Saturation of acceptor at acceptor excitation | G26: =calcSigma(G11)*G18*0.000000001*G21/(1+calcSigma(G11)*G18*0.000000001*G21) -> 0.001977377648
F27: Saturation of acceptor at donor excitation | G27: =calcSigma(G12)*G18*0.000000001*G20/(1+calcSigma(G12)*G18*0.000000001*G20) -> 0.01443644664
